Cogmind - Beta 17 @@@ ROGUE MODE // 2026.08.20 @ 06:08:53 Player: MrFartsburg Result: Destroyed by G-47 Trooper with Particle Gun Performance ------------- Evolutions (2) 1000 Regions Visited (5) 1000 Robots Destroyed (26) 130 Value Destroyed (590) 590 Prototype IDs (1) 20 Alien Tech Used (0) 0 Bonus (0) 0 TOTAL SCORE: 2740 Bonus ------- None Cogmind --------- Core Integrity 0/550 Matter 250/300 Energy 150/150 System Corruption 0% Temperature Cool (9) Movement Hovering (176) Ox2 Location -8/Materials Parts ------- > --- POWER (2) -------- Light Ion Engine Light Ion Engine > --- PROPULSION (3) --- Improved Hover Unit Improved Hover Unit > --- UTILITY (4) ------ Large Storage Unit Advanced Targeting Computer Hacking Suite Field Recycling Unit > --- WEAPON (2) ------- Great Maul > --- INVENTORY (15) --- Improved Hover Unit Surge Thruster Compact Battery (200) Structural Scanner Improved Terrain Scan Processor Peak State ------------ > --- POWER ------------ Ion Engine Light Ion Engine > --- PROPULSION ------- Wheel Airjet Improved Flight Unit > --- UTILITY ---------- Improved Heat Sink Large Storage Unit Advanced Targeting Computer Hacking Suite > --- WEAPON ----------- Assault Rifle Light Assault Rifle > --- INVENTORY -------- Aluminum Leg Aluminum Leg Assault Rifle EMP Trap [Rating: 21] Favorites ----------- Power Light Ion Engine Engine Light Ion Engine Propulsion Compact Wheel Leg Aluminum Leg Wheel Compact Wheel Hover Unit Improved Hover Unit Flight Unit Improved Flight Unit Utility Large Storage Unit Device Improved Heat Sink Storage Large Storage Unit Processor Advanced Targeting Computer Hackware Hacking Suite Weapon Assault Rifle Ballistic Gun Assault Rifle Ballistic Cannon Improved Light Cannon Launcher Rocket Launcher Impact Weapon Great Maul Build | -11 -10 -10 -9 -9 -8 ------- Run | Yrd Mat Min Mat Min Mat Slots Evolved 4 | . . . 2 . 2 Power 1 | . . . 1 . . Propulsion 1 | . . . 1 . . Utility 2 | . . . . . 2 Weapon . | . . . . . . Parts Attached 44 | 6 5 . 11 3 19 Power 9 | 1 1 . 2 2 3 Engine 9 | 1 1 . 2 2 3 Core . | . . . . . . Reactor . | . . . . . . Propulsion 18 | 2 . . 4 1 11 Treads . | . . . . . . Leg 2 | . . . . . 2 Wheel 4 | 2 . . 1 1 . Hover 6 | . . . . . 6 Flight 6 | . . . 3 . 3 Utility 7 | 1 2 . 1 . 3 Device 3 | . 1 . 1 . 1 Storage 2 | 1 1 . . . . Processor 1 | . . . . . 1 Hackware 1 | . . . . . 1 Protection . | . . . . . . Artifact . | . . . . . . Weapon 10 | 2 2 . 4 . 2 Energy Gun . | . . . . . . Energy Cannon . | . . . . . . Ballistic Gun 6 | 2 1 . 3 . . Ballistic Cannon 1 | . . . 1 . . Launcher 1 | . 1 . . . . Special Weapon . | . . . . . . Impact Weapon 2 | . . . . . 2 Slashing Weapon . | . . . . . . Piercing Weapon . | . . . . . . Special Melee Weapon . | . . . . . . Unidentified Prototypes 1 | . . . 1 . . Parts Lost 28 | . . . 9 2 17 Power 6 | . . . 3 1 2 Propulsion 12 | . . . 2 1 9 Utility 2 | . . . 1 . 1 Weapon 8 | . . . 3 . 5 Highest Loss Streak 9 | . . . 9 1 7 To Critical Strikes . | . . . . . . Average Backups 4 | 1 6 7 7 5 2 Power . | . 1 1 . . . Propulsion 2 | . 2 3 3 3 1 Utility . | . . . . . . Weapon 1 | . 2 3 3 2 . Tool/Special . | . . . . . . Unused Backups 7 | . . . . . 7 Power . | . . . . . . Propulsion 3 | . . . . . 3 Utility 3 | . . . . . 3 Weapon 1 | . . . . . 1 Tool/Special . | . . . . . . Average Slot Usage (%) 84 | . 99 100 83 91 74 Engine 13 | . 14 14 14 17 11 Wheel 16 | . 28 28 19 29 4 Hover 4 | . . . . . 9 Flight 2 | . . . 8 . 2 Device 9 | . 13 14 8 11 8 Storage 10 | . 14 14 11 11 9 Processor 3 | . . . . . 8 Hackware 3 | . . . . . 7 Ballistic Gun 12 | . 25 28 18 11 3 Ballistic Cannon 2 | . . . 2 11 1 Impact Weapon 3 | . . . . . 7 Peak Build Rating 21 | 6 10 10 19 12 21 Average Rating 12 | 4 9 9 12 11 16 On Entrance 7 | . 6 9 10 10 11 Avg Prop Armor Cover (%) 4 | . . . . . 4 Naked Turns . | . . . . . . Heaviest Build 38 | 14 30 30 34 34 38 Greatest Support 48 | 32 38 38 48 42 36 Greatest Overweight (x) 12 | . . . 6 1 12 Average Overweight (x) . | . . . . . 1 Largest Inventory Capacity 15 | 8 15 15 15 15 15 Average Capacity 14 | 7 10 15 15 15 15 Most Carried 13 | 4 8 10 13 7 7 Average Carried 5 | 2 6 7 10 7 2 Final Capacity 15 | 8 15 15 15 15 15 Final Carried 10 | 4 7 10 7 7 5 Class Distribution -------------------- 100% | Mutant Dominant Class ---------------- Mutant | -10/Materials Mutant | -10/Mines Mutant | -9/Materials Mutant | -9/Mines Mutant | -8/Materials Resources | -11 -10 -10 -9 -9 -8 ----------- Run | Yrd Mat Min Mat Min Mat Matter Collected 906 | 200 89 98 185 124 210 Remotely . | . . . . . . Salvage Created 655 | . 87 . 372 44 152 Parts 42 | . 13 . 20 5 4 Haulers Intercepted 1 | . . . 1 . . Recyclers Shooed . | . . . . . . Parts Field Recycled . | . . . . . . Retrieved Matter . | . . . . . . Parts Self-Destructed . | . . . . . . Prevented . | . . . . . . Parts Restored . | . . . . . . Kills | -11 -10 -10 -9 -9 -8 ------- Run | Yrd Mat Min Mat Min Mat Combat Hostiles Destroyed 22 | . 5 . 11 3 3 Guns 14 | . 5 . 8 1 . Cannons 5 | . . . 3 2 . Classes Destroyed 8 | . 2 . 2 1 3 Tunneler 1 | . . . . 1 . Hauler 1 | . . . 1 . . Operator 1 | . 1 . . . . Watcher 1 | . . . . . 1 Swarmer 11 | . 5 . 3 3 . Grunt 8 | . . . 8 . . Sentry 2 | . . . . . 2 Hunter 1 | . . . . . 1 Best Kill Streak 6 | . 6 . 5 4 2 Combat Bots Only 5 | . 5 . 5 3 2 Max Kills in Single Turn 2 | . 2 . 2 1 1 Gunslinging 1 | . 1 . 1 . . Exploded . | . . . . . . Melee . | . . . . . . Uniques/NPCs Destroyed . | . . . . . . Combat | -11 -10 -10 -9 -9 -8 -------- Run | Yrd Mat Min Mat Min Mat Hostile Shots Fired 339 | . 45 . 122 28 144 Missed 87 | . 16 . 29 5 37 Hits 252 | . 29 . 93 23 107 Projectile 252 | . 29 . 93 23 107 Critical Strikes 5 | . . . . 1 4 Damage Taken 3198 | . 256 12 1090 246 1594 Core 926 | . 31 . 278 61 556 Absorbed by Shields . | . . . . . . Core Remaining (%) 67 | 100 . 87 . 15 . Volleys Fired 55 | . 9 . 28 11 7 Largest 2 | . 2 . 2 2 2 Hottest 56 | . 56 . 56 53 53 Shots Fired 108 | . 18 . 55 22 13 Gun 81 | . 17 . 45 11 8 Cannon 26 | . . . 10 11 5 Launcher 1 | . 1 . . . . Special . | . . . . . . Kinetic 107 | . 17 . 55 22 13 Thermal . | . . . . . . Explosive 1 | . 1 . . . . Electromagnetic . | . . . . . . Robot Hit Streak 9 | . 3 . 5 9 6 Robot Miss Streak 5 | . 5 . 2 2 1 Penetration Max . | . . . . . . Secondary Targets 6 | . 3 . 3 . . Max Gunslinging Chain 1 | . 1 . 1 . . Shots Hit Robots 83 | . 9 . 36 12 26 Core Hits 32 | . 5 . 17 7 3 Critical Kills 1 | . . . 1 . . Critical Parts Destroyed 2 | . . . . . 2 Critical Strikes 3 | . . . 1 . 2 Destroy 1 | . . . 1 . . Smash 2 | . . . . . 2 Melee Attacks 23 | . . . . . 23 Impact 23 | . . . . . 23 Slashing . | . . . . . . Piercing . | . . . . . . Sneak Attacks . | . . . . . . Combat Hostiles . | . . . . . . Follow-up Attacks . | . . . . . . Damage Inflicted 1719 | . 209 25 525 297 663 Guns 644 | . 125 . 395 53 71 Cannons 322 | . . . 124 136 62 Explosions 82 | . 82 . . . . Melee 530 | . . . . . 530 Ramming 141 | . 2 25 6 108 . Kinetic 966 | . 125 . 519 189 133 Thermal . | . . . . . . Explosive 82 | . 82 . . . . Electromagnetic . | . . . . . . Impact 530 | . . . . . 530 Slashing . | . . . . . . Piercing . | . . . . . . Highest Corruption 5 | . . . . 5 . Average Corruption 5 | . . . . 5 . Corruption Purged . | . . . . . . Corruption Blocked . | . . . . . . Effects 1 | . . . . 1 . Matter Fused 1 | . . . . 1 . Overload Shots . | . . . . . . Overflow Damage 146 | . 22 . . . 124 Projectiles . | . . . . . . Explosions 22 | . 22 . . . . Melee 124 | . . . . . 124 Knockbacks 5 | . . . . 1 4 Impact 1 | . . . . . 1 Kinetic 2 | . . . . 1 1 Secondary 2 | . . . . . 2 Self-Inflicted Damage 104 | . 37 12 3 52 . Shots 1 | . 1 . . . . Rammed 11 | . 1 1 1 8 . Targets Rammed 11 | . 1 1 1 8 . Kicked . | . . . . . . Crushed . | . . . . . . Highest Temperature 161 | . 16 . 161 . 6 Average Temperature 26 | . 2 . 34 . 6 Received Heat Transfer 909 | . . . 567 . 342 Siege Activations . | . . . . . . Martial Activations . | . . . . . . Shielding Activations . | . . . . . . Robots Disrupted . | . . . . . . Combat Hostiles . | . . . . . . Robots Corrupted 3 | . . . . . 3 Combat Hostiles 3 | . . . . . 3 Parts Fried 1 | . . . . . 1 Impact Corruptions 6 | . . . . . 6 Robots Melted . | . . . . . . Combat Hostiles . | . . . . . . Parts Melted . | . . . . . . Heat Transferred . | . . . . . . Parts Sabotaged . | . . . . . . Parts Stolen . | . . . . . . Parts Stripped . | . . . . . . Power Chain Reactions . | . . . . . . Alert | -11 -10 -10 -9 -9 -8 ------- Run | Yrd Mat Min Mat Min Mat Maximum Alert Level . | . . . . . . Low Security (%) 100 | 100 100 100 100 100 100 Level 1 . | . . . . . . Level 2 . | . . . . . . Level 3 . | . . . . . . Level 4 . | . . . . . . Level 5 . | . . . . . . High Security . | . . . . . . Max Security . | . . . . . . Peak Influence 130 | . 130 . 92 76 60 Initial 31 | . . . . 31 11 Average 16 | . 41 . 29 30 4 Influence Increases 607 | . 146 . 259 105 97 Destroy 0b10 Robot/C 440 | . 100 . 220 60 60 Destroy 0b10 Robot/NC 20 | . 5 . 5 5 5 Destroy Leader 94 | . 20 . 32 10 32 Successful Hack 6 | . 6 . . . . Destroy Structure 17 | . 15 . 2 . . Lose Combat Pursuer 30 | . . . . 30 . Influence Decreases 607 | . 146 . 177 157 127 Entered New Map 70 | . . . . 51 19 Time Decay 300 | . 40 . 87 96 77 Lost Part 130 | . . . 90 10 30 Purge Threat 107 | . 106 . . . 1 Squads Dispatched 4 | . 1 . 1 . 2 Investigation 3 | . 1 . . . 2 Extermination . | . . . . . . Reinforcement 1 | . . . 1 . . Assault . | . . . . . . Garrison . | . . . . . . Intercept . | . . . . . . Searches Triggered . | . . . . . . Construction Impeded . | . . . . . . Haulers Reinforced . | . . . . . . Active Scanning Responses . | . . . . . . Cargo Convoy Interrupts . | . . . . . . Stealth | -11 -10 -10 -9 -9 -8 --------- Run | Yrd Mat Min Mat Min Mat Distress Signals 3 | . 1 . 2 . . Communications Jammed . | . . . . . . Distress Signals . | . . . . . . Times Spotted 36 | . 8 2 14 5 7 Peak Tracking Total 9 | . 8 2 9 3 3 Tactical Retreats 1 | . . . . 1 . Traps | -11 -10 -10 -9 -9 -8 ------- Run | Yrd Mat Min Mat Min Mat Traps Triggered . | . . . . . . Indirectly . | . . . . . . Trap Hack Attempts . | . . . . . . Triggered . | . . . . . . Disarmed . | . . . . . . Reprogrammed . | . . . . . . Reused . | . . . . . . Traps Extracted . | . . . . . . Installed . | . . . . . . Triggered . | . . . . . . Most Traps Carried 3 | . . 3 3 2 1 Machines | -11 -10 -10 -9 -9 -8 ---------- Run | Yrd Mat Min Mat Min Mat Machines Disabled . | . . . . . . Max in Single Turn . | . . . . . . Machines Repaired . | . . . . . . Machines Dismantled . | . . . . . . Machines Sabotaged . | . . . . . . Overloaded Fab Kills . | . . . . . . Hacking | -11 -10 -10 -9 -9 -8 --------- Run | Yrd Mat Min Mat Min Mat Machines Accessed 5 | . 1 . . . 4 Terminals 3 | . 1 . . . 2 Fabricators . | . . . . . . Repair Stations . | . . . . . . Recycling Units 1 | . . . . . 1 Scanalyzers 1 | . . . . . 1 Garrison Access . | . . . . . . Total Hacks 22 | . 8 . . . 14 Successful 15 | . 6 . . . 9 Failed 7 | . 2 . . . 5 Catastrophic 2 | . . . . . 2 Database Lockouts . | . . . . . . Manual . | . . . . . . Terminals 15 | . 8 . . . 7 Fabricators . | . . . . . . Repair Stations . | . . . . . . Recycling Units 1 | . . . . . 1 Scanalyzers 6 | . . . . . 6 Garrison Access . | . . . . . . Terminal Hacks 9 | . 6 . . . 3 Record 3 | . 3 . . . . Emergency Access Points 2 | . . . . . 2 Terminal Index 1 | . 1 . . . . Alert Level 1 | . 1 . . . . Unreport Threat 2 | . 1 . . . 1 Fabricator Hacks . | . . . . . . Repair Station Hacks . | . . . . . . Recycling Unit Hacks . | . . . . . . Scanalyzer 6 | . . . . . 6 Insert Component 1 | . . . . . 1 Analyze 1 | . . . . . 1 Retrieve Study 4 | . . . . . 4 Garrison Access Hacks . | . . . . . . Unauthorized Hacks . | . . . . . . Terminals . | . . . . . . Fabricators . | . . . . . . Repair Stations . | . . . . . . Recycling Units . | . . . . . . Scanalyzers . | . . . . . . Garrison Access . | . . . . . . Data Cores Recovered 1 | . 1 . . . . Used . | . . . . . . Hacking Detections 5 | . 1 . . . 4 Full Trace Events 3 | . 1 . . . 2 Feedback Events . | . . . . . . Feedback Blocked . | . . . . . . Robot Schematics Acquired . | . . . . . . Robots Built . | . . . . . . Authchips . | . . . . . . Time . | . . . . . . Total Robot Build Rating . | . . . . . . Part Schematics Acquired 1 | . . . . . 1 Parts Built . | . . . . . . Authchips . | . . . . . . Time . | . . . . . . Total Part Build Rating . | . . . . . . Part Studies Acquired 4 | . . . . . 4 Parts Repaired . | . . . . . . Time . | . . . . . . Parts Recycled . | . . . . . . Recycled Matter . | . . . . . . Retrieved Matter . | . . . . . . Retrieved Components . | . . . . . . Parts Scanalyzed 1 | . . . . . 1 Part Schematics Acquired 1 | . . . . . 1 Parts Damaged . | . . . . . . Bothacking | -11 -10 -10 -9 -9 -8 ------------ Run | Yrd Mat Min Mat Min Mat Used RIF Installer . | . . . . . . Robots Hacked . | . . . . . . Non-combat . | . . . . . . Combat . | . . . . . . Robot Hacks Applied . | . . . . . . Relay Couplers Released . | . . . . . . Fabnet Peak Effective % . | . . . . . . Robots Rewired . | . . . . . . Allies Hacked . | . . . . . . Hacks Repelled . | . . . . . . Allies | -11 -10 -10 -9 -9 -8 -------- Run | Yrd Mat Min Mat Min Mat Total Allies . | . . . . . . Largest Group . | . . . . . . Highest-Rated Group . | . . . . . . Highest-Rated Ally . | . . . . . . Total Orders . | . . . . . . Ally Attacks . | . . . . . . Total Damage . | . . . . . . Kills . | . . . . . . Allies Corrupted . | . . . . . . Allies Melted . | . . . . . . Intel | -11 -10 -10 -9 -9 -8 ------- Run | Yrd Mat Min Mat Min Mat Active Infowar (turns) . | . . . . . . Robot Analysis Total . | . . . . . . Derelict Logs Recovered 2 | . . 1 . 1 . Drone Launches . | . . . . . . Drone Recoveries . | . . . . . . Exploration | -11 -10 -10 -9 -9 -8 ------------- Run | Yrd Mat Min Mat Min Mat Turns Passed 1704 | 63 192 193 256 273 727 Spaces Moved 1133 | 50 152 186 131 250 364 Core 34 | 1 . . . . 33 Treads . | . . . . . . Legs 21 | . . . . . 21 Wheels 820 | 49 152 186 108 250 75 Hover 217 | . . . . . 217 Flight 41 | . . . 23 . 18 Fastest Speed 50 | 50 100 100 93 86 86 Average Speed 119 | 99 100 100 109 90 162 Slowest Speed 755 | 100 100 100 460 105 755 Overloaded Moves . | . . . . . . Propulsion Burnouts . | . . . . . . Robots Hopped . | . . . . . . Potential Cave-ins . | . . . . . . Cave-ins Triggered . | . . . . . . Exploration Rate (%) 22 | 3 26 34 19 38 12 Regions Visited 5 Branch Regions 2 Pre-discovered Areas 1 | . . . . 1 . Known Exits Taken 2 | . . . 1 1 . Unknown Exits Taken 3 | 1 1 1 . . . Scrap Searched 2 | . . 1 . 1 . Spaces Dug . | . . . . . . Terrain Destroyed 15 | . 14 . 1 . . Melee . | . . . . . . Projectile 1 | . . . 1 . . AOE 14 | . 14 . . . . Terrain Rammed . | . . . . . . Walls Destroyed . | . . . . . . Machines Disabled . | . . . . . . Actions | -11 -10 -10 -9 -9 -8 --------- Run | Yrd Mat Min Mat Min Mat Total 1330 | 60 174 193 188 274 441 Wait 17 | 1 . 4 5 3 4 Move 1128 | 49 151 185 130 249 364 Hop . | . . . . . . Pick Up 27 | 4 3 3 6 . 11 Fast Attach 27 | 6 3 . 2 3 13 Attach 13 | . . . 7 . 6 Detach 3 | . 2 . . . 1 Swap 14 | . 3 . 7 . 4 Drop 12 | . 2 . 2 . 8 Fire 55 | . 9 . 28 11 7 Melee 23 | . . . . . 23 Ram 11 | . 1 1 1 8 . Kick . | . . . . . . Crush . | . . . . . . Escape Stasis . | . . . . . . Rewire . | . . . . . . Trap . | . . . . . . Miscellaneous . | . . . . . . Route ------- -11/Scrapyard -10/Materials -10/Mines -9/Materials (discovered 3 exits: Mat / *Min x2) -9/Mines (discovered 2 exits: *Mat x2) -8/Materials History --------- Turn | Location | Event 34 | -11/Scrapyard | Discovered new exit (range 15) 64 | -11/Scrapyard | Entered Materials 250 | -10/Materials | Discovered new exit (range 7) 256 | -10/Materials | Entered Mines 273 | -10/Mines | Learned 2 Materials zone layouts 284 | -10/Mines | Assembled infested the area 289 | -10/Mines | Assisted by a Guerilla fighting off Assembled 311 | -10/Mines | Build established: Mutant 357 | -10/Mines | Discovered new exit (range 7) 370 | -10/Mines | Found a hidden stash of uninstalled traps 449 | -10/Mines | Entered Materials 449 | -9/Materials | Evolved 2 slots: Power x1, Propulsion x1 450 | -9/Materials | Identified exit to Materials 450 | -9/Materials | Identified exit to Mines 630 | -9/Materials | Core integrity fell below 50% 693 | -9/Materials | Lost 9 parts (3p2n1u3w) 694 | -9/Materials | Discovered exit to Mines (range 13) 705 | -9/Materials | Entered Mines 738 | -9/Mines | Core integrity fell below 20% 862 | -9/Mines | Discovered exit to Materials (range 12) 889 | -9/Mines | Discovered exit to Materials (range 5) 978 | -9/Mines | Entered Materials 978 | -8/Materials | Evolved 2 slots: Utility x2 1102 | -8/Materials | Lost 4 parts (2n2w) 1171 | -8/Materials | Lost 5 parts (1p3n1w) 1232 | -8/Materials | Core integrity fell below 50% 1273 | -8/Materials | Core integrity fell below 20% 1291 | -8/Materials | Lost 7 parts (1p3n1u2w) 1705 | -8/Materials | Destroyed by G-47 Trooper with Particle Gun Last Messages --------------- Dropped VTOL Module. Dropped Imp. Flight Unit. Acquired Imp. Hover Unit. Acquired Com. Battery. Acquired Surge Thruster. Acquired 5 matter. Acquired Imp. Terrain Scan Processor. Acquired Structural Scanner. R-06 Scavenger inserts Imp. Flight Unit into recycling unit. Connecting with Terminal... >>Access(Emergency) Found 1 emergency access door: (80,6) Map updated. ALERT: Suspicious activity at Terminal M004. Dispatching Investigation squad. Acquired 20 matter. G-47 Trooper knocked back. Imp. Hover Unit destroyed. Map ----- +----------------------------------------------------+ | | | | | | | | | | | | | | | | | | | | | | | | | | | | | | | | | | | | | ??????????????????###########????????????????????? | | ??????????????????# """ ###############??????? | | ??????????????????# "T" ! # # #??????? | | ??????????????????# # # #??????? | | ??????????????????# """ """ # """%[# """ #??????? | | ??????????????????# """ """ # """=%# """ #??????? | | ??##########??????# """ """ # """ %+ """ #??????? | | ### =######## @ # # #??????? | | # """ ## #######g#########+####+###??????? | | & # """ ## gg #??????? | | # """ ## T ^ & #??????? | | + ## #""" ^^ ####+####+#####????? | | # """ ### ###"Y ##[ # = #????? | | # """ ### #?#""" # # ==##????? | | # """ + #?# ^ % ## != # "S #?????? | | # ####### ^ ## ! # """ #?????? | | ##########????# % ## ! # "" #?????? | | #?????????????# !! ## # #?????? | | #?????????????# !! ## ########?????? | | #?????????????# !! ## #????????????? | | #???????????####+############# ! #????????????? | | #???????????# #???????######????????????? | | #???????????# #?????????????????????????? | | ????????????# !!#?????????????????????????? | | ????????????# ! #?????????????????????????? | | ????????????# !! #?????????????????????????? | | ????????????# #?????????????????????????? | | ??????????????# #?????????????????????????? | | ??????????????# ! #?????????????????????????? | | ??????????????# #?????????????????????????? | | ??????????????##########?????????????????????????? | | ?????????????????????????????????????????????????? | +----------------------------------------------------+ Best States ------------- Heat Dissipation 45 Energy Generation 17 Energy Capacity 275 Matter Stores 300 Matter Capacity 300 Sight Range 16 Terrain Scan Density 10 Additional Mass Support 6 Evasion (%) 42 Targeting Accuracy 8 Offensive Hacking 10 Item Schematics ----------------- Assault Rifle | -8/Materials | Scanalyzed Robot Schematics ------------------ None Fabricated ------------ Nothing Repaired ---------- Nothing Studied --------- Aluminum Leg | -8/Materials | Hacked Airjet | -8/Materials | Hacked Lgt. Ion Engine | -8/Materials | Hacked Assault Rifle | -8/Materials | Hacked Alien Tech Used ----------------- None Achievements -------------- None Challenges ------------ None Game ------ Seed MeleeCorruptionFlamer Manual? 0 Play Time 00:24:34 Cumulative 32.9 hours Start 2026.08.20 @ 05:45:19 End 2026.08.20 @ 06:08:53 Sessions 1 Manual Loads 0 Difficulty Rogue Special Mode None Game No. 64 Rogue 64 Adventurer 0 Explorer 0 Win Type - Total 0 Types 0/0/0/0/0/0/0/0/0/0 Lore% 13 Gallery% 23 Achievement% 15 Wizard Run 0 Options --------- Layout 1 ASCII 0 Keyboard 0 Movement Numpad Keybinds 0 Fullscreen 1 Font 32/SmallcapsGlow Map View 50x35 Zoom Use 0% Tactical HUD 0 Map Filters NONE Filters NONE Steam 1 RUN: 5253de56-7b7e-4846-b499-b9d22fe88a72